fUSD/lending_fUSD_20240813
["ID","MTS","AMOUNT","RATE_DAILY","PERIOD"]
[334767778,1723537877107,-195065.84695591,0.00023186,9]
[334767779,1723537877116,-1000.0,0.00023186,20]
[334767780,1723537877126,-518.19,0.00023186,2]
[334767781,1723537877136,-500.0,0.00023186,2]
[334767782,1723537877146,-500.0,0.00023186,2]
[334767783,1723537877155,-500.0,0.00023186,2]
[334767784,1723537877165,-500.0,0.00023186,2]
[334767785,1723537877175,-500.0,0.00023186,2]
[334767786,1723537877184,-500.0,0.00023186,2]
[334767787,1723537877193,-2368.33,0.00023186,2]
[334767788,1723537877203,-500.0,0.00023186,2]
[334767789,1723537877214,-500.0,0.00023186,2]
[334767790,1723537877224,-500.0,0.00023186,2]
[334767791,1723537877234,-500.0,0.00023186,2]
[334767792,1723537877244,-500.0,0.00023186,2]
[334767793,1723537877254,-500.0,0.00023186,2]
[334767794,1723537877264,-500.0,0.00023186,2]
[334767795,1723537877274,-500.95,0.00023186,2]
[334767796,1723537877284,-500.0,0.00023186,2]
[334767797,1723537877295,-1343.58,0.00023186,2]
[334767798,1723537877305,-572.04,0.00023186,2]
[334767799,1723537877315,-180.0,0.00023205,2]
[334767800,1723537877325,-675.14872268,0.0002324,2]
[334767801,1723537877337,-500.0,0.00023329,2]
[334767802,1723537877347,-901.76998133,0.00023364,2]
[334767803,1723537877357,-500.0,0.00023398,2]
[334767804,1723537877366,-523.89918948,0.000234,2]
[334767805,1723537877376,-500.0,0.00023413,2]
[334767806,1723537877388,-1000.0,0.0002346,20]
[334767807,1723537877399,-518.19,0.0002346,2]
[334767808,1723537877408,-500.0,0.0002346,2]
[334767809,1723537877418,-500.0,0.0002346,2]
[334767810,1723537877428,-500.0,0.0002346,2]
[334767811,1723537877437,-410.40795803,0.0002346,2]
[334767812,1723537877447,-500.0,0.0002346,2]
[334767813,1723537877457,-500.0,0.0002346,2]
[334767814,1723537877466,-2368.33,0.0002346,2]
[334767815,1723537877476,-500.0,0.0002346,2]
[334767816,1723537877486,-500.0,0.0002346,2]
[334767817,1723537877496,-500.0,0.0002346,2]
[334767818,1723537877505,-500.0,0.0002346,2]
[334767819,1723537877515,-550.86243158,0.0002346,2]
[334767820,1723537877525,-500.0,0.0002346,2]
[334767821,1723537877538,-418.32174567,0.0002346,2]
[334767822,1723537877552,-500.95,0.0002346,2]
[334767823,1723537877562,-500.0,0.0002346,2]
[334767824,1723537877571,-1343.58,0.0002346,2]
[334767825,1723537877582,-572.04,0.0002346,2]
[334767826,1723537877591,-500.0,0.00023471,2]
[334767827,1723537877601,-1898.36,0.000235,7]
[334767828,1723537877612,-1000.0,0.000235,2]
[334767829,1723537877621,-500.0,0.00023527,2]
[334767830,1723537877631,-3709.18468314,0.0002354,2]
[334767831,1723537877640,-150.0,0.00023648,2]
[334767832,1723537877649,-1000.0,0.00023734,20]
[334767833,1723537877659,-518.19,0.00023734,2]
[334767834,1723537877669,-500.0,0.00023734,2]
[334767835,1723537877679,-214.2147709,0.00023734,2]
[334767836,1723537877689,-500.0,0.00023734,2]
[334767837,1723537877698,-500.0,0.00023734,2]
[334767838,1723537877708,-500.0,0.00023734,2]
[334767839,1723537877717,-2368.33,0.00023734,2]
[334767840,1723537877728,-500.0,0.00023734,2]
[334767841,1723537877737,-500.0,0.00023734,2]
[334767842,1723537877747,-314.93497053,0.00023734,2]
[334767843,1723537877757,-500.0,0.00023734,2]
[334767844,1723537877766,-500.0,0.00023734,2]
[334767845,1723537877776,-500.95,0.00023734,2]
[334767846,1723537877786,-500.0,0.00023734,2]
[334767847,1723537877796,-1343.58,0.00023734,2]
[334767848,1723537877805,-572.04,0.00023734,2]
[334767849,1723537877815,-810.0,0.00023771,2]
[334767850,1723537877824,-500.0,0.00023799,2]
[334767851,1723537877835,-165623.75861774,0.000238,2]
[334767852,1723537877844,-1000.28,0.00023855,2]
[334767853,1723537877853,-500.0,0.00023861,2]
[334767854,1723537877863,-821.02801419,0.00023883,2]
[334767855,1723537877874,-523.89918948,0.000239,2]
[334767856,1723537877884,-500.0,0.00023938,2]
[334767857,1723537877894,-637160.55738632,0.0002398,2]
[334767858,1723537877903,-900.0,0.00024,2]
[334767859,1723537877912,-1000.0,0.00024,2]
[334767860,1723537877921,-843.9019502,0.00024008,20]
[334767861,1723537877931,-518.19,0.00024008,2]
[334767862,1723537877941,-562.42621953,0.00024008,2]
[334767863,1723537877951,-500.0,0.00024008,2]
[334767864,1723537877961,-500.0,0.00024008,2]
[334767865,1723537877970,-500.0,0.00024008,2]
[334767866,1723537877980,-2368.33,0.00024008,2]
[334767867,1723537877990,-500.0,0.00024008,2]
[334767868,1723537877999,-206.213656,0.00024008,2]
[334767869,1723537878009,-500.0,0.00024008,2]
[334767870,1723537878019,-250.29126099,0.00024008,2]
[334767871,1723537878028,-500.95,0.00024008,2]
[334767872,1723537878038,-575.76581457,0.00024008,2]
[334767873,1723537878048,-1343.58,0.00024008,2]
[334767874,1723537878057,-572.04,0.00024008,2]
[334767875,1723537878067,-117574.06675094,0.00024064,2]
[334767876,1723537878077,-2500.0,0.00024066,5]
[334767877,1723537878088,-500.0,0.00024074,2]
[334767878,1723537878098,-500.0,0.00024082,2]
[334767879,1723537878107,-500.0,0.00024135,2]
[334767880,1723537878116,-4664.70397669,0.000242,2]
[334767881,1723537878126,-150.0,0.00024225,2]
[334767882,1723537878136,-1052.0,0.0002425,2]
[334767883,1723537878146,-518.19,0.00024282,2]
[334767884,1723537878156,-165.82559943,0.00024282,2]
[334767885,1723537878165,-451.94927314,0.00024282,2]
[334767886,1723537878175,-500.0,0.00024282,2]
[334767887,1723537878185,-2368.33,0.00024282,2]
[334767888,1723537878195,-500.0,0.00024282,2]
[334767889,1723537878204,-500.0,0.00024282,2]
[334767890,1723537878215,-500.95,0.00024282,2]
[334767891,1723537878224,-1343.58,0.00024282,2]
[334767892,1723537878234,-572.04,0.00024282,2]
[334767893,1723537878243,-500.0,0.00024299,2]
[334767894,1723537878253,-2500.0,0.000243,8]
[334767895,1723537878263,-500.0,0.0002435,2]
[334767896,1723537878273,-523.89918948,0.000244,2]
[334767897,1723537878282,-1500.0,0.000244,2]
[334767898,1723537878292,-500.0,0.000244,8]
[334767899,1723537878307,-500.0,0.0002441,2]
[334767900,1723537878317,-500.0,0.00024424,2]
[334767901,1723537878327,-500.0,0.00024432,2]
[334767902,1723537878339,-724.80171726,0.00024434,2]
[334767903,1723537878356,-2148.54285482,0.000245,2]
[334767904,1723537878364,-1898.36,0.000245,7]
[334767905,1723537878374,-500.0,0.000245,8]
[334767906,1723537878386,-1187.0,0.000245,2]
[334767907,1723537878395,-1052.0,0.000245,2]
[334767908,1723537878404,-788.47397034,0.00024516,2]
[334767909,1723537878413,-518.19,0.00024556,2]
[334767910,1723537878423,-500.0,0.00024556,2]
[334767911,1723537878432,-2368.33,0.00024556,2]
[334767912,1723537878442,-500.0,0.00024556,2]
[334767913,1723537878452,-516.41447416,0.00024556,2]
[334767914,1723537878461,-500.95,0.00024556,2]
[334767915,1723537878470,-1343.58,0.00024556,2]
[334767916,1723537878480,-572.04,0.00024556,2]
[334767917,1723537878489,-500.0,0.000246,8]
[334767918,1723537878499,-150.0,0.00024657,4]
[334767919,1723537878508,-150.0,0.00024657,4]
[334767920,1723537878518,-150.0,0.00024657,4]
[334767921,1723537878527,-745.75967115,0.00024658,2]
[334767922,1723537878536,-500.0,0.00024678,2]
[334767923,1723537878546,-500.0,0.000247,9]
[334767924,1723537878556,-1052.0,0.0002475,2]
[334767925,1723537878566,-150.0,0.00024776,4]
[334767926,1723537878575,-800.0,0.00024787,2]
[334767927,1723537878586,-1000.0,0.000248,2]
[334767928,1723537878596,-1000.0,0.000248,2]
[334767929,1723537878605,-1000.0,0.000248,2]
[334767930,1723537878614,-1000.0,0.000248,2]
[334767931,1723537878623,-1000.0,0.000248,2]
[334767932,1723537878633,-1000.0,0.000248,2]
[334767933,1723537878643,-542.0,0.000248,9]
[334767934,1723537878652,-150.0,0.00024802,2]
[334767935,1723537878662,-518.19,0.0002483,2]
[334767936,1723537878672,-224.32649399,0.0002483,2]
[334767937,1723537878682,-2368.33,0.0002483,2]
[334767938,1723537878692,-500.0,0.0002483,2]
[334767939,1723537878701,-500.95,0.0002483,2]
[334767940,1723537878711,-1343.58,0.0002483,2]
[334767941,1723537878720,-572.04,0.0002483,2]
[334767942,1723537878730,-150.0,0.00024896,4]
[334767943,1723537878739,-500.0,0.00024899,2]
[334767944,1723537878749,-500.0,0.00024899,2]
[334767945,1723537878758,-827.88294802,0.000249,2]
[334767946,1723537878767,-3000.0,0.000249,2]
[334767947,1723537878777,-523.89918948,0.000249,2]
[334767948,1723537878787,-428.91117693,0.000249,2]
[334767949,1723537878797,-152.18,0.000249,31]
[334767950,1723537878807,-152.18,0.000249,31]
[334767951,1723537878817,-152.18,0.000249,31]
[334767952,1723537878827,-152.18,0.000249,31]
[334767953,1723537878847,-152.18,0.000249,31]
[334767954,1723537878857,-152.18,0.000249,31]
[334767955,1723537878867,-152.18,0.000249,31]
[334767956,1723537878878,-152.18,0.000249,31]
[334767957,1723537878888,-152.18,0.000249,31]
[334767958,1723537878898,-152.18,0.000249,31]
[334767959,1723537878907,-152.18,0.000249,31]
[334767960,1723537878917,-152.18,0.000249,31]
[334767961,1723537878928,-152.18,0.000249,31]
[334767962,1723537878937,-152.18,0.000249,31]
[334767963,1723537878947,-152.18,0.000249,31]
[334767964,1723537878956,-152.18,0.000249,31]
[334767965,1723537878966,-2258.99999901,0.000249,2]
[334767966,1723537878975,-199.31522393,0.000249,2]
[334767967,1723537878985,-2904.20269557,0.000249,2]
[334767968,1723537878995,-901.76998133,0.000249,2]
[334767969,1723537879005,-1352.06958215,0.00024999,10]
[334767970,1723537879015,-1352.06958215,0.00024999,10]
[334767971,1723537879025,-1000.0,0.00024999,2]
[334767972,1723537879034,-1000.0,0.00024999,2]
[334767973,1723537879044,-1000.0,0.00024999,2]
[334767974,1723537879054,-1000.0,0.00024999,2]
[334767975,1723537879218,-500.0,0.00024999,2]
[334767976,1723537879228,-500.0,0.00024999,2]
[334767977,1723537879237,-500.0,0.00024999,2]
[334767978,1723537879247,-500.0,0.00024999,2]
[334767979,1723537879256,-500.0,0.00024999,2]
[334767980,1723537879266,-500.0,0.00024999,2]
[334767981,1723537879275,-500.0,0.00024999,2]
[334767982,1723537879285,-500.0,0.00024999,2]
[334767983,1723537879294,-500.0,0.00024999,2]
[334767984,1723537879306,-500.0,0.00024999,2]
[334767985,1723537879316,-500.0,0.00024999,2]
[334767986,1723537879326,-500.0,0.00024999,2]
[334767987,1723537879337,-500.0,0.00024999,2]
[334767988,1723537879347,-500.0,0.00024999,2]
[334767989,1723537879357,-500.0,0.00024999,2]
[334767990,1723537879367,-500.0,0.00024999,2]
[334767991,1723537879377,-603.56524274,0.00024999,2]
[334767992,1723537879388,-500.0,0.00024999,2]
[334767993,1723537879399,-500.0,0.00024999,2]
[334767994,1723537879408,-500.0,0.00024999,2]
[334767995,1723537879418,-521.76074046,0.00024999,2]
[334767996,1723537879427,-1475.85809793,0.00024999,2]
[334767997,1723537879436,-500.0,0.00024999,2]
[334767998,1723537879445,-500.0,0.00024999,2]
[334767999,1723537879455,-500.0,0.00024999,2]
[334768000,1723537879465,-500.0,0.00024999,2]
[334768001,1723537879475,-500.0,0.00024999,2]
[334768002,1723537879484,-500.0,0.00024999,2]
[334768003,1723537879493,-565.34925891,0.00024999,2]
[334768004,1723537879502,-500.0,0.00024999,2]
[334768005,1723537879511,-500.0,0.00024999,2]
[334768006,1723537879521,-500.0,0.00024999,2]
[334768007,1723537879531,-500.0,0.00024999,2]
[334768008,1723537879541,-500.0,0.00024999,2]
[334768009,1723537879550,-500.0,0.00024999,2]
[334768010,1723537879560,-500.0,0.00024999,2]
[334768011,1723537879569,-500.0,0.00024999,2]
[334768012,1723537879579,-345.30217835,0.00024999,2]
[334768013,1723537879590,-500.0,0.00024999,2]
[334768014,1723537879599,-500.0,0.00024999,2]
[334768015,1723537879609,-500.0,0.00024999,2]
[334768016,1723537879619,-183.94489103,0.00024999,2]
[334768017,1723537879629,-8646.41437135,0.00025,2]
[334768018,1723537879639,-150.0,0.00025,4]
[334768019,1723537879649,-3855631.72774455,0.00025,2]
[334768020,1723537879659,-1256538.38508603,0.00025,2]
[334768021,1723537879668,-780.51738759,0.00025,2]
[334768022,1723537879677,-27309.99441741,0.00025,7]
[334768023,1723537879686,-250.0,0.00025,2]
[334768024,1723537879696,-335990.30820966,0.00025,2]
[334768025,1723537879705,-710.32,0.00025,10]
[334768026,1723537879715,-1000.0,0.00025,10]
[334768027,1723537879724,-1000.0,0.00025,10]
[334768028,1723537879734,-1000.0,0.00025,10]
[334768029,1723537879743,-1000.0,0.00025,10]
[334768030,1723537879752,-1000.0,0.00025,10]
[334768031,1723537879761,-1000.0,0.00025,10]
[334768032,1723537879770,-1000.0,0.00025,10]
[334768033,1723537879779,-1000.0,0.00025,10]
[334768034,1723537879789,-1000.0,0.00025,10]
[334768035,1723537879799,-1000.0,0.00025,10]
[334768036,1723537879808,-1000.0,0.00025,10]
[334768037,1723537879818,-1000.0,0.00025,10]
[334768038,1723537879827,-1000.0,0.00025,10]
[334768039,1723537879839,-1000.0,0.00025,10]
[334768040,1723537879849,-1000.0,0.00025,10]
[334768041,1723537879859,-1000.0,0.00025,10]
[334768042,1723537879868,-1000.0,0.00025,10]
[334768043,1723537879878,-1000.0,0.00025,10]
[334768044,1723537879887,-1000.0,0.00025,10]
[334768045,1723537879897,-1000.0,0.00025,10]
[334768046,1723537879907,-1000.0,0.00025,10]
[334768047,1723537879916,-1000.0,0.00025,10]
[334768048,1723537879925,-1000.0,0.00025,10]
[334768049,1723537879934,-1000.0,0.00025,10]
[334768050,1723537879945,-1000.0,0.00025,10]
[334768051,1723537879954,-1000.0,0.00025,10]
[334768052,1723537879964,-1000.0,0.00025,10]
[334768053,1723537879973,-1000.0,0.00025,10]
[334768054,1723537879983,-1000.0,0.00025,10]
[334768055,1723537879993,-1000.0,0.00025,10]
[334768056,1723537880002,-1077.90759819,0.00025,10]
[334768057,1723537880012,-184.85,0.00025,15]
[334768058,1723537880022,-327.08518518,0.00025,2]
[334768059,1723537880032,-390.27807784,0.00025,4]
[334768060,1723537880042,-1355974.05002653,0.00025,2]
[334768061,1723537880244,-281576.61977177,0.00025,2]
[334768062,1723537880256,-219921.24735327,0.00025,2]
[334768063,1723537880268,-20000.0,0.00025,2]
[334768064,1723537880281,-924.899999,0.00025,2]
[334768065,1723537880293,-1642.8995,0.00025,2]
[334768066,1723537880317,-500.0,0.00022364,2]
[334768067,1723537880326,-3233.35497294,0.00025,2]
[334768068,1723537880436,-302.0,0.00014235,2]
[334768069,1723537880448,-201.51887826,0.00014235,2]
[334768070,1723537880458,-536.77143614,0.00014235,2]
[334768071,1723537880467,-500.0,0.00014244,2]
[334768072,1723537880477,-500.0,0.00014273,2]
[334768073,1723537880486,-508.38508116,0.00014509,2]
[334768074,1723537880495,-305.56254062,0.00014518,2]
[334768075,1723537880505,-501.1183685,0.00014547,2]
[334768076,1723537880514,-275.63675414,0.00020821,2]
[334768077,1723537880524,-500.0,0.00022364,2]
[334768078,1723537880533,-500.0,0.00022364,2]
[334768079,1723537880542,-500.0,0.00022364,2]
[334768080,1723537880552,-1755.22913238,0.000249,2]
[334768081,1723537880568,-9521.52102756,0.000249,2]
[334768082,1723537880587,-1301.58,0.00014235,2]
[334768083,1723537880596,-1923.15762716,0.000249,2]
[334768084,1723537880607,-263.95605343,0.000249,2]
[334768085,1723537880619,-300.0,0.000249,2]
[334768086,1723537880631,-1174.72855772,0.000249,2]
[334768087,1723537880642,-10079.78552827,0.000249,2]
[334768088,1723537880651,-34600.64793442,0.00025,2]
[334768089,1723537880663,-7167.72,0.00025,2]
[334768090,1723537880675,-744.5,0.00025,2]
[334768091,1723537880687,-572.21,0.00025,2]
[334768092,1723537881226,-221.73803944,0.00013979,2]
[334768093,1723537881236,-500.0,0.00014273,2]
[334768094,1723537881245,-828.64632657,0.00014509,2]
[334768095,1723537881264,-472.93367343,0.00014509,2]
[334768096,1723537881274,-500.0,0.00014547,2]
[334768097,1723537881283,-1301.58,0.00014783,2]
[334768098,1723537881292,-385.48378031,0.00014821,2]
[334768099,1723537881306,-1301.58,0.00015057,2]
[334768100,1723537881314,-1301.58,0.00015331,2]
[334768101,1723537881323,-1301.58,0.00015605,2]
[334768102,1723537881332,-1301.58,0.00015879,2]
[334768103,1723537881344,-1301.58,0.00016153,2]
[334768104,1723537881354,-1301.58,0.00016427,2]
[334768105,1723537881362,-1301.58,0.00016701,2]
[334768106,1723537881372,-5653.41196672,0.00018789,2]
[334768107,1723537881382,-4656.72463708,0.00025,2]
[334768108,1723537881395,-357.83288674,0.00025,2]
[334768109,1723537881406,-2192.36880359,0.00025,2]
[334768110,1723537881452,-500.0,0.00014235,2]
[334768111,1723537881461,-3.53991469,0.00014509,2]
[334768112,1723537881475,-496.46008531,0.00014509,2]
[334768113,1723537881485,-1301.58,0.00016975,2]
[334768114,1723537881496,-767.60601046,0.00017249,2]
[334768115,1723537898909,567.8854,0.00012913,2]
[334768117,1723538251321,150.0,0.00026709,120]
[334768118,1723538340682,151.23,0.0001168,2]
[334768123,1723538689888,550.0,0.0001,2]
[334768124,1723538691012,600.0,0.00012,2]
[334768192,1723539032427,-181.34243174,0.00013388,2]
[334768195,1723539032437,-2570.87862076,0.00013399,2]
[334768197,1723539032448,-1096.73776496,0.00013399,2]
[334768199,1723539032460,-1238.04,0.00013399,2]
[334768201,1723539032471,-397.92779334,0.00013399,2]
[334768203,1723539032482,-919.67681036,0.00013399,2]
[334768205,1723539032491,-1103.12172387,0.00013489,2]
[334768207,1723539032503,-172.63004868,0.00013489,2]
[334768208,1723539032512,-307.21766283,0.00013499,2]
[334768209,1723539032523,-131.55262527,0.00013499,2]
[334768210,1723539032533,-300.0,0.0001356,2]
[334768211,1723539032543,-315.0090225,0.00013561,2]
[334768212,1723539032554,-759.92805963,0.00013561,2]
[334768213,1723539032563,-224.1664427,0.00013698,2]
[334768214,1723539032575,-302.61164095,0.00013698,2]
[334768215,1723539032586,-232.89935905,0.0001372,2]
[334768216,1723539032605,-206.21619098,0.0001372,2]
[334768217,1723539032614,-151.23,0.00013833,2]
[334768218,1723539032623,-155.0,0.00013879,2]
[334768219,1723539032633,-155.0,0.00013889,2]
[334768220,1723539032642,-684.79,0.00013973,2]
[334768221,1723539032652,-425.0,0.00013973,2]
[334768222,1723539032661,-522.80021426,0.00013989,2]
[334768223,1723539032670,-650.0,0.00014,2]
[334768224,1723539032679,-370.6658017,0.00014086,2]
[334768225,1723539032692,-105.54541167,0.00014086,2]
[334768226,1723539032703,-265.12039003,0.00014086,2]
[334768227,1723539032712,-316.77347451,0.00014105,2]
[334768228,1723539032721,-316.77347451,0.00014105,2]
[334768229,1723539032731,-150.0,0.00014234,2]
[334768230,1723539032740,-337.33266095,0.00014235,2]
[334768231,1723539032751,-162.66733905,0.00014235,2]
[334768232,1723539032761,-500.0,0.00014235,2]
[334768233,1723539032772,-500.0,0.00014235,2]
[334768234,1723539032781,-500.0,0.00014235,2]
[334768235,1723539032790,-500.0,0.00014235,2]
[334768237,1723539032799,-505.54046194,0.00014235,2]
[334768239,1723539032808,-502.32598729,0.00014235,2]
[334768241,1723539032817,-501.48799493,0.00014235,2]
[334768243,1723539032826,-1197.85027711,0.00014261,2]
[334768245,1723539032839,-208.40746525,0.00014261,2]
[334768247,1723539032848,-72.43107824,0.00014273,2]
[334768249,1723539032860,-427.56892176,0.00014273,2]
[334768251,1723539032869,-500.0,0.00014273,2]
[334768253,1723539032878,-500.0,0.00014273,2]
[334768255,1723539032887,-500.0,0.00014273,2]
[334768257,1723539032897,-500.0,0.00014273,2]
[334768259,1723539032906,-500.0,0.00014509,2]
[334768261,1723539032915,-482.93514901,0.00014509,2]
[334768263,1723539032927,-103.73797028,0.00014509,2]
[334768265,1723539032937,-487.72999809,0.00014509,2]
[334768268,1723539032948,-156.39791523,0.00014509,2]
[334768270,1723539032957,-500.0,0.00014509,2]
[334768272,1723539032967,-500.0,0.00014509,2]
[334768274,1723539032976,-161.06,0.00014539,2]
[334768275,1723539032985,-1000.0,0.00014547,2]
[334768277,1723539032994,-502.99324089,0.00014547,2]
[334768279,1723539033003,-330.9942835,0.00014547,2]
[334768281,1723539033013,-500.0,0.00014547,2]
[334768283,1723539033022,-500.67072,0.00014547,2]
[334768285,1723539033032,-500.49220518,0.00014547,2]
[334768287,1723539033042,-161.06,0.00014612,2]
[334768289,1723539033051,-400.0,0.00014617,2]
[334768291,1723539033061,-500.0,0.00014783,2]
[334768293,1723539033070,-500.0,0.00014783,2]
[334768295,1723539033080,-500.0,0.00014783,2]
[334768297,1723539033098,-132.57601952,0.00014821,2]
[334768300,1723539033110,-365.87457906,0.00014821,2]
[334768302,1723539033120,-420.0,0.00014863,2]
[334768304,1723539033129,-999.02,0.00015,2]
[334768306,1723539033138,-6893.33101567,0.00015047,2]
[334768308,1723539033151,-478.59396333,0.00015047,2]
[334768310,1723539033163,-500.0,0.00015047,2]
[334768314,1723539033186,-1836.39289519,0.00015047,2]
[334768316,1723539033198,-1079.82897878,0.00015047,2]
[334768318,1723539033209,-5650.16525414,0.00015047,2]
[334768320,1723539033219,-500.0,0.00015057,2]
[334768322,1723539033228,-500.0,0.00015057,2]
[334768324,1723539033237,-500.0,0.00015057,2]
[334768325,1723539033246,-500.0,0.00015331,2]
[334768326,1723539033255,-486.48,0.00015331,2]
[334768328,1723539033264,-500.0,0.00015331,2]
[334768330,1723539033273,-2751.0,0.00015443,2]
[334768332,1723539033283,-187.25962187,0.00015605,2]
[334768334,1723539033292,-500.0,0.00015605,2]
[334768336,1723539033301,-200.0,0.00015661,2]
[334768338,1723539033310,-167.0,0.00015831,2]
[334768340,1723539033320,-508.97,0.00015879,2]
[334768342,1723539033330,-700.0,0.00016,2]
[334768344,1723539033342,-151.23,0.00016223,2]
[334768346,1723539033351,-587.0,0.0001629,2]
[334768348,1723539033361,-167.0,0.00016354,2]
[334768350,1723539033370,-1000.0,0.00016365,2]
[334768352,1723539033379,-999.02,0.00016375,2]
[334768354,1723539033389,-400.0,0.00016444,2]
[334768356,1723539033398,-167.0,0.00016876,2]
[334768358,1723539033407,-531.16504504,0.0001695,2]
[334768360,1723539033416,-546.83834329,0.00016999,2]
[334768362,1723539033426,-155.0,0.00017004,2]
[334768364,1723539033435,-155.0,0.00017004,2]
[334768365,1723539033444,-673.04,0.00017034,2]
[334768367,1723539033453,-500.0,0.00017034,2]
[334768369,1723539033463,-500.0,0.00017034,2]
[334768371,1723539033472,-543.19110801,0.00017034,2]
[334768374,1723539033482,-454.57,0.00017034,2]
[334768376,1723539033491,-500.0,0.00017034,2]
[334768377,1723539033500,-500.0,0.00017034,2]
[334768379,1723539033510,-500.0,0.00017034,2]
[334768381,1723539033519,-500.0,0.00017034,2]
[334768383,1723539033528,-500.0,0.00017034,2]
[334768385,1723539033538,-500.0,0.00017034,2]
[334768387,1723539033547,-500.0,0.00017034,2]
[334768389,1723539033556,-500.0,0.00017034,2]
[334768391,1723539033565,-500.0,0.00017034,2]
[334768393,1723539033574,-507.78456922,0.00017034,2]
[334768395,1723539033583,-500.0,0.00017034,2]
[334768397,1723539033601,-500.0,0.00017034,2]
[334768399,1723539033610,-500.0,0.00017034,2]
[334768401,1723539033620,-500.0,0.00017034,2]
[334768403,1723539033629,-500.0,0.00017034,2]
[334768405,1723539033639,-500.0,0.00017034,2]
[334768407,1723539033648,-300.0,0.00017034,2]
[334768409,1723539033657,-155.0,0.00017259,2]
[334768411,1723539033666,-673.04,0.00017308,2]
[334768413,1723539033675,-500.0,0.00017308,2]
[334768415,1723539033685,-500.0,0.00017308,2]
[334768417,1723539033698,-500.0,0.00017308,2]
[334768419,1723539033707,-500.0,0.00017308,2]
[334768421,1723539033717,-500.0,0.00017308,2]
[334768423,1723539033727,-500.0,0.00017308,2]
[334768425,1723539033740,-500.0,0.00017308,2]
[334768427,1723539033750,-500.0,0.00017308,2]
[334768429,1723539033762,-500.0,0.00017308,2]
[334768431,1723539033774,-500.0,0.00017308,2]
[334768433,1723539033787,-500.0,0.00017308,2]
[334768435,1723539033798,-504.94744318,0.00017308,2]
[334768437,1723539033809,-500.0,0.00017308,2]
[334768439,1723539033821,-508.975086,0.00017308,2]
[334768441,1723539033831,-502.96330966,0.00017308,2]
[334768443,1723539033857,-500.0,0.00017308,2]
[334768446,1723539033868,-505.05579914,0.00017308,2]
[334768448,1723539033880,-167.0,0.00017399,2]
[334768450,1723539033890,-1764.43455926,0.00017399,2]
[334768452,1723539033901,-673.04,0.00017582,2]
[334768454,1723539033911,-293.64678306,0.00017582,2]
[334768456,1723539033922,-421.40111854,0.00017582,2]
[334768458,1723539033933,-500.0,0.00017582,2]
[334768459,1723539033947,-500.0,0.00017582,2]
[334768460,1723539033958,-500.0,0.00017582,2]
[334768461,1723539033969,-500.0,0.00017582,2]
[334768462,1723539033981,-500.0,0.00017582,2]
[334768463,1723539033993,-500.0,0.00017582,2]
[334768464,1723539034004,-500.0,0.00017582,2]
[334768465,1723539034014,-500.0,0.00017582,2]
[334768466,1723539034025,-500.0,0.00017582,2]
[334768467,1723539034034,-507.21868183,0.00017582,2]
[334768468,1723539034045,-500.0,0.00017582,2]
[334768469,1723539034269,-999.02,0.0001775,2]